fUST/lending_fUST_20260402
["ID","MTS","AMOUNT","RATE_DAILY","PERIOD"]
[419277811,1775096563473,1412.0,0.00032877,120]
[419277819,1775096689727,914.0,0.00032877,120]
[419277872,1775097032439,-156.0,0.00013699,2]
[419277874,1775097032457,-179.005,0.00013699,2]
[419277949,1775097038589,-820.995,0.00013699,2]
[419277951,1775097038599,-356.79678082,0.000196,2]
[419277953,1775097038609,-300.0,0.0002042,2]
[419277955,1775097038618,-300.0,0.0002042,2]
[419277957,1775097038629,-300.0,0.0002042,2]
[419277959,1775097038638,-1200.0,0.0002042,2]
[419277961,1775097038648,-1405.0,0.00020421,2]
[419277963,1775097038657,-2203.0,0.00020421,2]
[419277965,1775097038666,-643.0,0.00020421,2]
[419277967,1775097038676,-440.0,0.00020421,2]
[419277969,1775097038685,-745.753,0.00020421,2]
[419277971,1775097038694,-184.0,0.00020421,2]
[419277974,1775097038705,-151.0,0.00020931,2]
[419277976,1775097038714,-199.8570833,0.00020931,2]
[419277978,1775097038724,-500.0,0.0002136,2]
[419277980,1775097038734,-500.0,0.0002136,2]
[419277982,1775097038743,-500.0,0.0002136,2]
[419277984,1775097038752,-500.0,0.0002136,2]
[419277986,1775097038762,-194.20948075,0.0002136,2]
[419277988,1775097038771,-500.0,0.0002136,2]
[419277990,1775097038780,-500.0,0.0002136,2]
[419277992,1775097038789,-500.0,0.0002136,2]
[419277994,1775097038799,-500.0,0.0002136,2]
[419277996,1775097038808,-500.0,0.0002136,2]
[419277998,1775097038818,-507.39191346,0.0002136,2]
[419278000,1775097038828,-633.30462032,0.0002136,2]
[419278002,1775097038837,-500.0,0.0002136,2]
[419278003,1775097038847,-500.0,0.0002136,2]
[419278005,1775097038856,-299.54191097,0.0002136,2]
[419278016,1775097038972,-604.30725605,0.0002136,2]
[419278018,1775097038987,-500.0,0.0002136,2]
[419278020,1775097038997,-200.0,0.00021361,2]
[419278022,1775097039006,-64334.8487817,0.00021361,2]
[419278025,1775097039022,-3672.34118555,0.00021361,2]
[419278056,1775097042485,-14549.65301212,0.00021361,2]
[419278146,1775097046924,-7070.23664682,0.00021361,2]
[419278255,1775097254059,1000.0,0.00032,120]
[419278273,1775097902520,519.97,0.00036516,120]
[419278282,1775098190284,528.438388,0.00036516,120]
[419278314,1775098232510,-1000.0,0.00013699,2]
[419278316,1775098232520,-1340.22219161,0.00014175,2]
[419278318,1775098232530,-193.20470289,0.00014175,2]
[419278320,1775098232542,-419.87348843,0.00014175,2]
[419278322,1775098232551,-300.0,0.00019548,2]
[419278324,1775098232561,-300.0,0.00019548,2]
[419278326,1775098232571,-835.82865257,0.00019548,2]
[419278329,1775098232587,-364.17134743,0.00019548,2]
[419278331,1775098232597,-103.35507879,0.00019548,2]
[419278455,1775098236040,1001.29,0.00036516,120]
[419278464,1775098238972,-196.64492121,0.00019548,2]
[419278465,1775098238983,-338.90432503,0.00019549,2]
[419278466,1775098238993,-387.3192286,0.00019549,2]
[419278467,1775098239002,-604.5811084,0.00019549,2]
[419278468,1775098239011,-189.89791419,0.00019549,2]
[419278469,1775098239022,-401.31954932,0.00019896,2]
[419278470,1775098239033,-3139.97818459,0.00019896,2]
[419278471,1775098239052,-19519.18062599,0.00019896,2]
[419278472,1775098239061,-2203.0,0.00020409,2]
[419278473,1775098239071,-475.2,0.00020409,2]
[419278474,1775098239081,-184.0,0.00020409,2]
[419278475,1775098239092,-440.0,0.00020409,2]
[419278476,1775098239103,-1357.6406839,0.00020572,20]
[419278477,1775098239113,-2000.43264426,0.000206,2]
[419278478,1775098239123,-2000.45,0.000207,2]
[419278479,1775098239134,-2000.45,0.000208,2]
[419278480,1775098239144,-2000.45,0.000209,2]
[419278481,1775098239154,-1900.98271513,0.00021,2]
[419278486,1775098241436,-886.84,0.00013,2]
[419278487,1775098241447,-99.46728487,0.00021,2]
[419278488,1775098241456,-485.94663652,0.00021108,2]
[419278489,1775098241466,-500.0,0.00021108,2]
[419278490,1775098241475,-500.0,0.00021108,2]
[419278491,1775098241485,-500.0,0.00021108,2]
[419278492,1775098241495,-500.0,0.00021108,2]
[419278493,1775098241504,-500.0,0.00021108,2]
[419278494,1775098241513,-500.0,0.00021108,2]
[419278495,1775098241523,-573.01507923,0.00021108,2]
[419278496,1775098241532,-200.0,0.00021109,2]
[419278497,1775098241541,-200.0,0.00021109,2]
[419278498,1775098241551,-1226.33099938,0.00021109,2]
[419278518,1775098247176,-1901.41835745,0.00021109,2]
[419278519,1775098364022,303.19639847,0.00036516,120]
[419278520,1775098364307,303.19639847,0.00036516,120]
[419278521,1775098364590,303.19639847,0.00036516,120]
[419278522,1775098364953,303.19639847,0.00036516,120]
[419278523,1775098365210,303.19639847,0.00036516,120]
[419278524,1775098365548,303.19639847,0.00036516,120]
[419278525,1775098365870,303.19639847,0.00036516,120]
[419278526,1775098366180,303.19639847,0.00036516,120]
[419278527,1775098618264,2856.0,0.00036515,120]
[419278528,1775098671793,4656.0,0.00036515,120]
[419278529,1775098732608,7025.0,0.00036515,120]
[419278530,1775098881256,-1000.0,0.00013699,2]
[419278531,1775098881284,-23.38073517,0.00013699,2]
[419278532,1775098910301,-378.92990355,0.00013699,2]
[419278533,1775098943814,-97.68936128,0.00013699,2]
[419278534,1775098943871,-43.26676997,0.00013699,2]
[419278590,1775099432578,-5000.0,0.00011643,2]
[419278592,1775099432587,-1360.3879286,0.00012,2]
[419278594,1775099432598,-626.6120714,0.00012,2]
[419278596,1775099432607,-300.0,0.00013697,2]
[419278598,1775099432616,-1200.0,0.00013697,2]
[419278600,1775099432625,-300.0,0.00013698,2]
[419278602,1775099432635,-300.0,0.00013698,2]
[419278604,1775099432645,-456.73323003,0.00013699,2]
[419278606,1775099432654,-310.16174261,0.00013699,2]
[419278608,1775099432663,-1000.0,0.00013699,2]
[419278610,1775099432672,-420.0,0.00015012,2]
[419278612,1775099432682,-1680.0,0.00015067,2]
[419278614,1775099432691,-587.0,0.00016451,2]
[419278616,1775099432700,-643.0,0.00019933,2]
[419278618,1775099432709,-938.302,0.00019933,2]
[419278620,1775099432718,-440.0,0.00019933,2]
[419278622,1775099432728,-184.0,0.00019933,2]
[419278624,1775099432738,-500.0,0.0002027,2]
[419278626,1775099432748,-504.90125257,0.00020318,2]
[419278628,1775099432757,-920.93610166,0.00020699,2]
[419278630,1775099432766,-3049.2503769,0.00020725,2]
[419278632,1775099432776,-2368.963377,0.00020799,2]
[419278634,1775099432785,-3166.90365966,0.00020799,2]
[419278636,1775099432797,-390.66670509,0.00020799,2]
[419278674,1775099446374,-873.35134153,0.00020591,2]
[419278675,1775099467131,1453.0,0.00036515,120]
[419278676,1775099468775,227.0,0.00036515,120]
[419278680,1775099724326,276.0,0.00032677,120]
[419278682,1775099854549,10000.0,0.00036519,120]
[419278683,1775099970269,500.0,0.00036519,120]
[419278684,1775099970521,500.0,0.00036519,120]
[419278685,1775099970792,500.0,0.00036519,120]
[419278686,1775099971034,500.0,0.00036519,120]
[419278687,1775099971258,500.0,0.00036519,120]
[419278688,1775099971491,500.0,0.00036519,120]
[419278689,1775099971739,500.0,0.00036519,120]
[419278690,1775099971990,500.0,0.00036519,120]
[419278691,1775099972229,500.0,0.00036519,120]
[419278692,1775099972485,500.0,0.00036519,120]
[419278693,1775099972754,500.0,0.00036519,120]
[419278694,1775099972991,500.0,0.00036519,120]
[419278695,1775099973261,500.0,0.00036519,120]
[419278696,1775099973513,500.0,0.00036519,120]
[419278697,1775099973755,500.0,0.00036519,120]
[419278698,1775099974328,500.0,0.00036519,120]
[419278699,1775099974589,500.0,0.00036519,120]
[419278700,1775099975245,500.0,0.00036519,120]
[419278701,1775099975468,500.0,0.00036519,120]
[419278702,1775099975713,504.31421036,0.00036519,120]
[419278703,1775099985746,226.0,0.00032679,120]
[419278705,1775100028771,1153.377103,0.00036519,120]
[419278707,1775100090085,151.09977862,0.00036519,120]
[419278711,1775100352711,664.77,0.00032,120]
[419278747,1775100484707,500.0,0.00036519,120]
[419278748,1775100484973,515.47689944,0.00036519,120]
[419278749,1775100531792,161.80973701,0.000328,120]
[419278750,1775100588028,1560.05889,0.00036519,120]
[419278752,1775100605394,415.0,0.000324,120]
[419278753,1775100621787,500.0,0.000328,120]
[419278765,1775100633366,-4324.94303434,0.00012,2]
[419278766,1775100633376,-1000.0,0.00013699,2]
[419278767,1775100633386,-300.0,0.00018261,2]
[419278768,1775100633395,-214.0,0.00018261,2]
[419278769,1775100633405,-3215.8763988,0.00018262,2]
[419278770,1775100633414,-3749.3658919,0.00018262,2]
[419278776,1775100638222,-5962.0015001,0.00018262,2]
[419278777,1775100638232,-151.1643735,0.00018262,2]
[419278778,1775100638242,-218.1819485,0.00019287,2]
[419278779,1775100638252,-170.786212,0.00019299,2]
[419278780,1775100638261,-196.2208232,0.00020109,2]
[419278781,1775100638271,-390.31691305,0.00020111,2]
[419278843,1775100646451,-2137.35848,0.00020111,2]
[419278844,1775100646508,-688.20100575,0.00020111,2]
[419278845,1775100646518,-6.79899425,0.00020508,2]
[419278846,1775100646529,-300.0,0.00020508,2]
[419278847,1775100646540,-599.8543811,0.00020508,2]
[419278848,1775100646550,-981.86031253,0.00020509,2]
[419278849,1775100646559,-621.78829552,0.00020597,2]
[419278850,1775100646568,-2487.15318209,0.00020597,2]
[419278851,1775100646577,-340.16264557,0.00020608,2]
[419278852,1775100646587,-500.0,0.00020608,2]
[419278853,1775100646596,-500.0,0.00020608,2]
[419278854,1775100646605,-500.0,0.00020608,2]
[419278855,1775100646615,-565.88190192,0.00020608,2]
[419278856,1775100646624,-500.0,0.00020608,2]
[419278857,1775100646632,-500.0,0.00020608,2]
[419278858,1775100646642,-390.57856185,0.00020608,2]
[419278859,1775100646651,-151.0,0.00020609,2]
[419278860,1775100646660,-99634.73464262,0.00020609,2]
[419278873,1775100803992,500.0,0.00036519,120]
[419278874,1775100804386,500.0,0.00036519,120]
[419278875,1775100804610,622.69879252,0.00036519,120]
[419278876,1775100884160,287.42624237,0.00036519,120]
[419278877,1775100884458,287.42624237,0.00036519,120]
[419278878,1775100884744,287.42624237,0.00036519,120]
[419278879,1775100885043,287.42624237,0.00036519,120]
[419278880,1775100885387,287.42624237,0.00036519,120]
[419278881,1775100885839,287.42624237,0.00036519,120]
[419278882,1775100886024,287.42624237,0.00036519,120]
[419278883,1775100886319,287.42624237,0.00036519,120]
[419278884,1775100886721,287.42624237,0.00036519,120]
[419278885,1775100887048,287.42624237,0.00036519,120]
[419278886,1775100887350,287.42624237,0.00036519,120]
[419278887,1775100887952,287.42624237,0.00036519,120]
[419278888,1775100888243,287.42624237,0.00036519,120]
[419278889,1775100888579,287.42624237,0.00036519,120]
[419278890,1775100888868,287.42624237,0.00036519,120]
[419278892,1775101549868,6010.0,0.00036519,120]
[419278893,1775101579809,1232.78,0.00036519,120]
[419278894,1775101621985,2000.0,0.00036519,120]
[419278895,1775101666652,2000.0,0.00036519,120]
[419278896,1775101676591,2000.0,0.00036519,120]
[419278897,1775101692241,500.0,0.00036519,120]
[419278898,1775101692536,504.59280716,0.00036519,120]
[419278933,1775101832251,-1000.0,0.00013699,2]
[419278934,1775101832261,-1546.62875555,0.00014175,2]
[419278935,1775101832271,-980.03811746,0.00014175,2]
[419278936,1775101832280,-300.0,0.00014274,2]
[419278937,1775101832290,-1200.0,0.00014274,2]
[419278938,1775101832299,-1753.56326143,0.00014275,2]
[419278939,1775101832311,-1706.21233302,0.00014275,2]
[419278940,1775101832320,-420.0,0.00015634,2]
[419278941,1775101832332,-336.41306316,0.00018786,2]
[419278942,1775101832342,-1607.9381994,0.00019883,2]
[419278943,1775101832351,-986.53640442,0.00019883,2]
[419278944,1775101832362,-908.06644971,0.00019883,2]
[419278976,1775101840961,-755.79661957,0.00019883,2]
[419278977,1775101840971,-643.0,0.00020329,2]
[419278978,1775101840981,-194.72792766,0.00020497,2]
[419278979,1775101840990,-1601.11573912,0.00020497,2]
[419278987,1775101841446,-420.00262349,0.00020497,2]
[419278988,1775101841457,-151.0,0.000205,3]
[419278989,1775101841467,-151.0,0.00020509,2]
[419278990,1775101841477,-151.782896,0.00020509,2]
[419278991,1775101841487,-710.97,0.00020509,2]
[419278992,1775101841497,-710.97,0.00020509,2]
[419278993,1775101841507,-710.97,0.00020509,2]
[419278994,1775101841517,-710.97,0.00020509,2]
[419278995,1775101841527,-710.97,0.00020509,2]
[419278996,1775101841537,-722.1,0.00020509,2]
[419278997,1775101841547,-501.91213522,0.00020573,2]
[419278998,1775101841557,-332.26190369,0.0002075,2]
[419278999,1775101841567,-500.0,0.0002075,2]
[419279000,1775101841577,-196.65900875,0.0002075,2]
[419279001,1775101841604,-303.34099125,0.0002075,2]
[419279002,1775101841615,-500.0,0.0002075,2]
[419279003,1775101841625,-177.0921145,0.0002075,2]
[419279089,1775101844475,-322.9078855,0.0002075,2]
[419279090,1775101844484,-104.86612787,0.0002075,2]
[419279091,1775101844581,-200.98655099,0.0002075,2]
[419279092,1775101844591,-500.0,0.0002075,2]
[419279093,1775101844600,-156.85791906,0.00020815,2]
[419279094,1775101844611,-239.78466341,0.00020815,2]
[419279095,1775101844621,-274.03961532,0.00020815,2]
[419279096,1775101844631,-1994.17426,0.00020822,2]
[419279097,1775101844641,-1016.080884,0.00020822,2]
[419279099,1775101844650,-616.8083182,0.00020854,18]
[419279101,1775101844659,-434.80213859,0.00020854,18]
[419279103,1775101844671,-178.85860772,0.00020854,18]
[419279104,1775101844680,-152.0,0.000209,2]
[419279105,1775101844690,-158.0,0.000209,2]
[419279106,1775101844699,-366.0,0.000209,2]
[419279107,1775101844709,-169.0,0.000209,2]
[419279108,1775101844719,-455.1794191,0.00020934,2]
[419279109,1775101844730,-454.9100029,0.00020934,2]
[419279110,1775101844740,-153.20707,0.00021121,2]
[419279111,1775101844749,-789.0,0.000212,2]
[419279112,1775101844759,-600.0,0.00021223,10]
[419279113,1775101844768,-1007.85687243,0.00021298,2]
[419279114,1775101844778,-502.48107025,0.00021298,2]
[419279115,1775101844788,-1000.0,0.00021298,2]
[419279116,1775101844797,-1000.0,0.00021298,2]
[419279117,1775101844807,-1000.0,0.00021298,2]
[419279118,1775101844816,-250.0,0.0002137,4]
[419279119,1775101844826,-240.0,0.0002137,3]
[419279120,1775101844836,-200.0,0.0002137,2]
[419279121,1775101844845,-370.48995786,0.000216,2]
[419279122,1775101844857,-819.17704514,0.000216,2]
[419279123,1775101844867,-210.43225433,0.00021644,2]
[419279124,1775101844877,-154.03875392,0.00021644,2]
[419279125,1775101844887,-158.84634291,0.00021644,2]
[419279126,1775101844897,-173.31006317,0.00021644,2]
[419279127,1775101844906,-310.22640455,0.00021656,2]
[419279128,1775101844917,-659.55530002,0.00021656,2]
[419279129,1775101844926,-197.96757272,0.00021756,2]
[419279130,1775101844938,-256.62818208,0.00021756,2]
[419279131,1775101844947,-28824.82021556,0.00021818,2]
[419279152,1775101846657,-1019.90277795,0.00021818,2]
[419279153,1775101846671,-72870.43704202,0.00021818,2]
[419279154,1775101846710,-1065.48,0.00021818,2]
[419279158,1775101895917,655.86248556,0.00036519,120]
[419279159,1775101897252,570.0,0.00036519,120]
[419279160,1775102314713,714.0,0.00036514,120]
[419279161,1775102443432,-974.69662264,0.0001,2]
[419279163,1775102478983,-524.33647357,0.00013699,2]
[419279164,1775102479009,-475.66352643,0.00013699,2]
[419279165,1775102508086,-500.0,0.00014,2]
[419279166,1775102543789,-184.0,0.00020285,2]
[419279167,1775102543812,-184.0,0.00020285,2]
[419279168,1775102543823,-459.0,0.00020285,2]
[419279169,1775102543832,-172.03309621,0.00021,2]
[419279170,1775102572924,-172.03309621,0.00021,2]
[419279171,1775102572938,-155.93380758,0.00021,2]
[419279172,1775102572948,-172.03309621,0.000212,2]
[419279173,1775102783564,174.0,0.00032877,120]
[419279174,1775102857397,7598.78384653,0.00036514,120]
[419279175,1775102868299,172.0,0.00032877,120]
[419279176,1775102990799,315.6,0.00036514,120]
[419279290,1775103043997,-209.40581814,0.00013599,2]
[419279291,1775103044248,-1000.0,0.00013699,2]
[419279292,1775103044488,-1000.0,0.00020577,2]
[419279293,1775103044575,-334.4775157,0.000212,2]
[419279294,1775103044642,-281.49502965,0.000212,2]
[419279295,1775103044677,-219.32785226,0.000212,2]
[419279298,1775103047878,580.93,0.00036514,120]
[419279299,1775103048155,580.93,0.00036514,120]
[419279301,1775103048513,580.93,0.00036514,120]
[419279302,1775103048931,580.93,0.00036514,120]
[419279303,1775103049156,580.93,0.00036514,120]
[419279304,1775103049357,580.93,0.00036514,120]
[419279305,1775103049712,580.93,0.00036514,120]
[419279306,1775103049962,580.93,0.00036514,120]
[419279307,1775103050329,580.93,0.00036514,120]
[419279308,1775103050671,580.93,0.00036514,120]
[419279309,1775103051043,580.93,0.00036514,120]
[419279310,1775103051370,580.93,0.00036514,120]
[419279311,1775103051983,580.93,0.00036514,120]
[419279312,1775103052471,580.93,0.00036514,120]
[419279313,1775103052762,580.93,0.00036514,120]
[419279319,1775103053049,580.93,0.00036514,120]
[419279322,1775103053363,580.93,0.00036514,120]
[419279328,1775103053698,580.93,0.00036514,120]
[419279329,1775103054264,580.93,0.00036514,120]
[419279333,1775103055024,580.93,0.00036514,120]
[419279339,1775103055807,580.93,0.00036514,120]
[419279340,1775103056087,580.93,0.00036514,120]
[419279341,1775103056335,580.93,0.00036514,120]
[419279343,1775103056758,581.0575255,0.00036514,120]
[419279367,1775103060766,-184.0,0.00021035,2]
[419279368,1775103060840,-82.275,0.000212,2]
[419279369,1775103061004,-126.58404669,0.000212,2]
[419279370,1775103061061,-280.10342688,0.00021255,2]
[419279371,1775103061103,-179.26619321,0.00021278,2]
[419279372,1775103061135,-1170.19853618,0.0002148,2]
[419279373,1775103061181,-1200.0,0.00021716,2]
[419279374,1775103061217,-914.73149194,0.00021718,2]
[419279375,1775103061273,-121.03339395,0.00021726,2]
[419279376,1775103062116,-100.04964505,0.00021726,2]
[419279377,1775103062187,-196.2501007,0.00021727,2]
[419279378,1775103062223,-196.2713615,0.00021727,2]
[419279379,1775103062293,-300.0,0.00021803,2]
[419279380,1775103062354,-300.0,0.00021803,2]
[419279381,1775103062427,-2.71173005,0.00021804,2]
[419279382,1775103062783,-229.28826995,0.00021804,2]
[419279383,1775103062809,-300.0,0.00021805,2]
[419279384,1775103062861,-5015.82,0.00021808,10]
[419279385,1775103062912,-227.31294586,0.00021808,10]
[419279386,1775103063036,-701.07406928,0.00021808,10]
[419279387,1775103063288,-360.55327488,0.00021808,10]
[419279412,1775103078652,-290.05277548,0.00015,2]
[419279413,1775103078779,-1000.0,0.0002,2]
[419279414,1775103078832,-780.13235745,0.0002148,2]
[419279415,1775103078930,-2890.90970998,0.00021808,10]
[419279416,1775103079044,-3483.21,0.00021808,10]
[419279417,1775103079122,-240.0,0.00021808,4]
[419279418,1775103079152,-250.0,0.00021808,4]
[419279419,1775103079191,-300.0,0.00021816,2]
[419279420,1775103079268,-400.0,0.00021817,2]
[419279421,1775103079329,-308.50382314,0.00021817,2]
[419279422,1775103079367,-500.0,0.00021817,2]
[419279423,1775103079508,-500.0,0.00021817,2]
[419279424,1775103079570,-500.0,0.00021817,2]
[419279425,1775103079611,-500.0,0.00021817,2]
[419279426,1775103079678,-191.99512899,0.00021817,2]
[419279427,1775103079752,-500.0,0.00021817,2]
[419279428,1775103079802,-500.0,0.00021817,2]
[419279429,1775103079904,-457.46694232,0.00021817,2]
[419279433,1775103106841,535.0,0.00032877,120]
[419279440,1775103282926,163.0,9e-05,2]
[419279446,1775103557819,1370.0,0.00032676,120]
[419279449,1775103636883,780.0,0.00032676,120]
[419279480,1775103789188,462.3339351,0.00036514,120]
[419279486,1775104000891,200017.54485389,0.00036514,120]
[419279489,1775104036966,2000.0,0.00036523,120]
[419279490,1775104044175,231.1669676,0.00036523,120]
[419279492,1775104064405,1000.0,0.00036523,120]
[419279496,1775104221706,1000.0,0.00036523,120]
[419279497,1775104234102,500.0,0.00036523,120]
[419279511,1775104244194,500.0,0.00036523,120]
[419279527,1775104245818,-1000.0,0.00013699,2]
[419279528,1775104245866,-169.95083676,0.00014175,2]
[419279530,1775104245927,-332.005,0.00014175,2]
[419279532,1775104245964,-78.21771149,0.00014175,2]
[419279534,1775104246002,-616.59384242,0.00014175,2]
[419279536,1775104246034,-613.44878905,0.00014175,2]
[419279538,1775104246229,-427.04710969,0.00017254,2]
[419279542,1775104246308,-772.95289031,0.00017254,2]
[419279545,1775104246389,-2024.66,0.00017255,2]
[419279546,1775104246453,-300.0,0.00017321,2]
[419279548,1775104246529,-300.0,0.00017321,2]
[419279552,1775104246603,-2438.41,0.00017322,2]
[419279554,1775104246629,-1128.16,0.00017412,2]
[419279557,1775104246711,-1561.23,0.00017491,2]
[419279560,1775104246809,-300.0,0.00017667,2]
[419279562,1775104246839,-300.0,0.00017667,2]
[419279563,1775104246864,-300.0,0.00017667,2]
[419279566,1775104246923,-300.0,0.00017667,2]
[419279567,1775104247008,-300.0,0.00017667,2]
[419279569,1775104247055,-300.0,0.00017667,2]
[419279571,1775104247100,-300.0,0.00017667,2]
[419279572,1775104247139,-300.0,0.00017667,2]
[419279575,1775104247183,-300.0,0.00017667,2]
[419279577,1775104247240,-300.0,0.00017667,2]
[419279578,1775104247286,-300.0,0.00017667,2]
[419279581,1775104247382,-300.0,0.00017667,2]
[419279584,1775104247423,-300.0,0.00017667,2]
[419279586,1775104247448,-220.52046821,0.00017667,2]
[419279588,1775104247520,-316.21767275,0.00013599,2]
[419279590,1775104247630,-79.47953179,0.00017667,2]
[419279594,1775104247787,-300.0,0.00017667,2]
[419279596,1775104247851,-89.06541701,0.00018574,2]
[419279598,1775104247974,-210.93458299,0.00018574,2]
[419279600,1775104248034,-348.17507049,0.00019611,2]
[419279602,1775104248093,-505.26683923,0.00019867,2]
[419279604,1775104248123,-500.0,0.00019867,2]
[419279606,1775104248204,-600.0,0.0002034,2]
[419279611,1775104248384,-1000.0,0.00020415,2]
[419279612,1775104248407,-402.94558578,0.00020641,2]
[419279615,1775104248509,-1500.0,0.00020963,2]
[419279617,1775104248559,-209.40581814,0.00020996,2]
[419279619,1775104248634,-1000.0,0.00021,2]
[419279621,1775104248741,-232.69372593,0.0002105,2]
[419279623,1775104248804,-643.0,0.00021097,2]
[419279625,1775104248840,-440.0,0.00021097,2]
[419279626,1775104248871,-184.0,0.00021097,2]
[419279627,1775104248944,-3789.5744437,0.0002121,2]
[419279629,1775104248970,-500.42926801,0.00021473,2]
[419279630,1775104249074,-295.51494026,0.0002148,2]
[419279632,1775104249099,-224.57329804,0.0002148,2]
[419279634,1775104249193,-33.94898628,0.0002149,10]
[419279637,1775104249296,-764.52505576,0.0002149,10]
[419279639,1775104249392,-2104.20595796,0.0002149,10]
[419279640,1775104249443,-500.0,0.00021499,2]
[419279642,1775104249496,-250.0,0.00021499,2]
[419279644,1775104249568,-409.07128085,0.00021499,2]
[419279646,1775104249638,-265.22565607,0.00021499,2]
[419279647,1775104249685,-500.0,0.00021499,2]
[419279649,1775104249773,-500.0,0.00021499,2]
[419279652,1775104249938,-500.0,0.00021499,2]
[419279653,1775104250012,-318.83397002,0.00021499,2]
[419279655,1775104250063,-31249.9845527,0.000215,2]
[419279657,1775104250132,-4783.18568281,0.000215,2]
[419279658,1775104250214,-35298.90363008,0.000215,2]
[419279660,1775104250263,-18613.46250149,0.000215,2]
[419279662,1775104250342,-1951.88971912,0.000215,2]
[419279664,1775104250397,-186160.5995796,0.000215,2]
[419279665,1775104250455,-495.840245,0.000215,2]
[419279696,1775104252445,500.0,0.00036523,120]
[419279719,1775104253174,-421.58325822,0.0002148,2]
[419279720,1775104253223,-308.72674178,0.000215,2]
[419279722,1775104253911,-7068.58019113,0.000215,2]
[419279723,1775104254653,-1209.79618404,0.000215,2]
[419279741,1775104259847,500.0,0.00036523,120]
[419279928,1775104305763,283.0,0.00036523,120]
[419279929,1775104321865,235.0,0.00032877,120]
[419279930,1775104352057,231.1669676,0.00036523,120]
[419279931,1775104352244,-1000.0,0.00013699,2]
[419279933,1775104714120,113111.0,0.00036523,120]
[419279951,1775105439647,-209.40581814,0.00013599,2]
[419279952,1775105439662,-1000.0,0.00013699,2]
[419279953,1775105439676,-500.0,0.00019973,2]
[419279954,1775105439691,-300.0,0.00019998,2]
[419279955,1775105439705,-300.0,0.00019998,2]
[419279956,1775105439719,-154.17014663,0.00019999,2]
[419279957,1775105439736,-345.82985337,0.00019999,2]
[419279959,1775105439750,-289.33790564,0.00019999,2]
[419279962,1775105439766,-210.66209436,0.00019999,2]
[419279964,1775105439781,-500.0,0.00019999,2]
[419279966,1775105439796,-542.12970905,0.00019999,2]
[419279968,1775105439810,-185.65795925,0.00019999,2]
[419279970,1775105439823,-185.65795924,0.00019999,2]
[419279972,1775105439837,-300.0,0.00019999,2]
[419279973,1775105439851,-1918.20421157,0.0002,2]
[419279975,1775105439868,-1112.07467022,0.0002,2]
[419279985,1775105440138,-1606.27437057,0.0002,2]
[419280029,1775105443384,-54588.519223,0.0002,2]
[419280079,1775105445224,-1107.9990059,0.0002,2]
[419280080,1775105445243,-18196.30865834,0.0002,2]
[419280125,1775105448994,-17681.61880355,0.0002,2]
[419280126,1775105449120,-403.38603628,0.0002,2]
[419280127,1775105449143,-4239.29898453,0.0002,2]
[419280128,1775105449159,-13791.53943688,0.0002,2]
[419280130,1775105558578,640.0,0.00036512,120]
[419280132,1775105782984,1170.0,0.00032877,120]
[419280134,1775106027200,302.90311787,0.0003,120]
[419280135,1775106461216,3073.13881419,0.00031247,120]
[419280139,1775106595369,11461.457226,0.00036508,120]
[419280140,1775106599463,538124.73897512,0.00036508,120]
[419280167,1775106631957,-269.08724583,0.00012078,2]